Cogmind - Beta 13 @@@ ROGUE MODE // 2024.04.02 @ 22:34:30 Player: ossi Result: Self-destructed Performance ------------- Evolutions (1) 500 Regions Visited (3) 600 Robots Destroyed (28) 140 Value Destroyed (474) 474 Prototype IDs (0) 0 Alien Tech Used (0) 0 Bonus (0) 0 TOTAL SCORE: 1714 Bonus ------- None Cogmind --------- Core Integrity 352/400 Matter 198/300 Energy 250/250 System Corruption 0% Temperature Cool (0) Movement Treading (160) Location -9/Materials Parts ------- > --- POWER (1) -------- Ion Engine > --- PROPULSION (2) --- Light Treads Light Treads > --- UTILITY (4) ------ Structural Scanner > --- WEAPON (2) ------- Assault Rifle > --- INVENTORY (5) ---- Ion Engine Light Treads Wheel Wheel Grenade Launcher Peak State ------------ > --- POWER ------------ Ion Engine > --- PROPULSION ------- Wheel Wheel > --- UTILITY ---------- Improved Terrain Scanner Seismic Detector > --- WEAPON ----------- Assault Rifle Assault Rifle > --- INVENTORY -------- Light Ion Engine Wheel Wheel EM Pulse Gun [Rating: 9] Favorites ----------- Power Ion Engine Engine Ion Engine Propulsion Light Treads Treads Light Treads Leg Aluminum Leg Wheel Wheel Utility Seismic Detector Device Seismic Detector Storage High-capacity Storage Unit Weapon Assault Rifle Energy Gun Backup Laser I Ballistic Gun Assault Rifle Launcher Grenade Launcher Build | -11 -10 -10 -9 ------- Run | Yrd Mat Min Mat Slots Evolved 2 | . . . 2 Power . | . . . . Propulsion . | . . . . Utility 2 | . . . 2 Weapon . | . . . . Parts Attached 31 | 13 16 2 . Power 2 | 2 . . . Engine 2 | 2 . . . Core . | . . . . Reactor . | . . . . Propulsion 12 | 7 5 . . Treads 3 | . 3 . . Leg 2 | 2 . . . Wheel 7 | 5 2 . . Hover . | . . . . Flight . | . . . . Utility 10 | 2 8 . . Device 8 | 2 6 . . Storage 2 | . 2 . . Processor . | . . . . Hackware . | . . . . Protection . | . . . . Artifact . | . . . . Weapon 7 | 2 3 2 . Energy Gun . | . . . . Energy Cannon . | . . . . Ballistic Gun 4 | 2 1 1 . Ballistic Cannon . | . . . . Launcher 3 | . 2 1 . Special Weapon . | . . . . Impact Weapon . | . . . . Slashing Weapon . | . . . . Piercing Weapon . | . . . . Special Melee Weapon . | . . . . Unidentified Prototypes . | . . . . Parts Lost 4 | . 2 1 1 Power . | . . . . Propulsion 1 | . 1 . . Utility 2 | . 1 1 . Weapon 1 | . . . 1 Highest Loss Streak 1 | . 1 1 1 To Critical Strikes . | . . . . Average Slot Usage (%) 94 | . 99 85 62 Engine 13 | . 14 14 11 Treads 19 | . 16 28 22 Wheel 8 | . 10 . . Device 23 | . 27 14 11 Energy Gun 1 | . . 9 . Ballistic Gun 20 | . 25 5 11 Launcher 4 | . 2 14 7 Naked Turns . | . . . . Heaviest Build 50 | 11 50 11 11 Greatest Support 40 | 20 40 40 40 Greatest Overweight (x) 2 | . 2 . . Average Overweight (x) . | . . . . Largest Inventory Capacity 20 | 5 20 5 5 Average Capacity 5 | 5 5 5 5 Most Carried 11 | 5 11 5 5 Average Carried 4 | 3 5 5 5 Final Capacity 5 | 5 5 5 5 Final Carried 5 | 5 5 5 5 Class Distribution -------------------- 76% | Scavenger-Mutant 23% | Mutant Dominant Class ---------------- Scavenger-Mutant | -10/Materials Mutant | -10/Mines Mutant | -9/Materials Resources | -11 -10 -10 -9 ----------- Run | Yrd Mat Min Mat Matter Collected 687 | 366 189 43 89 Remotely . | . . . . Salvage Created 535 | 102 271 71 91 Parts 50 | 12 27 7 4 Haulers Intercepted 1 | . 1 . . Recyclers Shooed 1 | . . 1 . Parts Field Recycled . | . . . . Retrieved Matter . | . . . . Parts Self-Destructed . | . . . . Prevented . | . . . . Kills | -11 -10 -10 -9 ------- Run | Yrd Mat Min Mat Combat Hostiles Destroyed 19 | 1 10 5 3 Guns 9 | 1 6 . 2 AOE 10 | . 4 5 1 Classes Destroyed 7 | 3 4 . . Worker 3 | 1 1 1 . Builder 1 | . 1 . . Tunneler 2 | 2 . . . Hauler 1 | . 1 . . Watcher 2 | . 2 . . Swarmer 11 | . 8 3 . Grunt 8 | 1 2 2 3 Best Kill Streak 5 | 2 5 4 3 Combat Bots Only 5 | 1 5 3 3 Max Kills in Single Turn 2 | 1 2 2 1 Gunslinging . | . . . . Exploded 2 | . 2 2 1 Melee . | . . . . Uniques/NPCs Destroyed . | . . . . Combat | -11 -10 -10 -9 -------- Run | Yrd Mat Min Mat Hostile Shots Fired 72 | 2 43 18 9 Missed 24 | . 12 10 2 Damage Taken 565 | 22 310 78 155 Core 108 | 11 34 15 48 Absorbed by Shields . | . . . . Regen/Repaired (Parts) 76 | . 76 . . Core Remaining (%) 85 | 95 . 76 . Volleys Fired 54 | 6 34 7 7 Largest 2 | 2 2 2 2 Hottest 60 | 40 60 60 50 Shots Fired 102 | 12 67 14 9 Gun 87 | 12 61 7 7 Cannon . | . . . . Launcher 15 | . 6 7 2 Special . | . . . . Kinetic 79 | 12 60 . 7 Thermal 8 | . 1 7 . Explosive 15 | . 6 7 2 Electromagnetic . | . . . . Robot Hit Streak 6 | 3 6 4 6 Robot Miss Streak 5 | 2 5 2 1 Penetration Max . | . . . . Secondary Targets . | . . . . Shots Hit Robots 46 | 6 28 5 7 Core Hits 40 | 5 19 10 6 Critical Kills . | . . . . Critical Parts Destroyed 1 | . 1 . . Critical Strikes 1 | . 1 . . Destroy 1 | . 1 . . Melee Attacks . | . . . . Impact . | . . . . Slashing . | . . . . Piercing . | . . . . Sneak Attacks . | . . . . Combat Hostiles . | . . . . Follow-up Attacks . | . . . . Damage Inflicted 1455 | 66 784 437 168 Guns 519 | 66 387 20 46 Cannons . | . . . . Explosions 936 | . 397 417 122 Melee . | . . . . Ramming . | . . . . Kinetic 499 | 66 387 . 46 Thermal 20 | . . 20 . Explosive 936 | . 397 417 122 Electromagnetic . | . . . . Impact . | . . . . Slashing . | . . . . Piercing . | . . . . Highest Corruption . | . . . . Average Corruption . | . . . . Corruption Purged . | . . . . Corruption Blocked . | . . . . Overload Shots . | . . . . Overflow Damage 22 | . 8 . 14 Projectiles . | . . . . Explosions 22 | . 8 . 14 Melee . | . . . . Knockbacks . | . . . . Impact . | . . . . Kinetic . | . . . . Secondary . | . . . . Self-Inflicted Damage 114 | . 53 . 61 Shots 4 | . 2 . 2 Rammed . | . . . . Targets Rammed . | . . . . Kicked . | . . . . Crushed . | . . . . Highest Temperature 29 | . 2 29 8 Average Temperature 15 | . 2 21 4 Received Heat Transfer 117 | 12 30 24 51 Siege Activations . | . . . . Robots Corrupted . | . . . . Combat Hostiles . | . . . . Parts Fried . | . . . . Impact Corruptions . | . . . . Robots Melted . | . . . . Combat Hostiles . | . . . . Parts Melted . | . . . . Heat Transferred 74 | . . 74 . Parts Sabotaged . | . . . . Parts Stolen . | . . . . Parts Stripped . | . . . . Power Chain Reactions 1 | . 1 . . Alert | -11 -10 -10 -9 ------- Run | Yrd Mat Min Mat Peak Influence 269 | 35 269 143 135 Initial 55 | . 22 . 55 Average 99 | 16 113 91 80 Maximum Alert Level 1 | . 1 . . Low Security (%) 83 | 100 76 100 100 Level 1 16 | . 23 . . Level 2 . | . . . . Level 3 . | . . . . Level 4 . | . . . . Level 5 . | . . . . High Security . | . . . . Max Security . | . . . . Squads Dispatched 1 | . 1 . . Investigation . | . . . . Extermination . | . . . . Reinforcement 1 | . 1 . . Assault . | . . . . Garrison . | . . . . Intercept . | . . . . Searches Triggered . | . . . . Construction Impeded . | . . . . Haulers Reinforced . | . . . . Active Scanning Responses . | . . . . Cargo Convoy Interrupts . | . . . . Stealth | -11 -10 -10 -9 --------- Run | Yrd Mat Min Mat Distress Signals . | . . . . Communications Jammed . | . . . . Distress Signals . | . . . . Times Spotted 28 | 1 18 5 4 Peak Tracking Total 6 | 1 6 3 2 Tactical Retreats 1 | . 1 . . Traps | -11 -10 -10 -9 ------- Run | Yrd Mat Min Mat Traps Triggered . | . . . . Indirectly . | . . . . Trap Hack Attempts . | . . . . Triggered . | . . . . Disarmed . | . . . . Reprogrammed . | . . . . Reused . | . . . . Traps Extracted . | . . . . Installed . | . . . . Triggered . | . . . . Machines | -11 -10 -10 -9 ---------- Run | Yrd Mat Min Mat Machines Disabled 1 | . 1 . . Max in Single Turn 1 | . 1 . . Machines Repaired . | . . . . Machines Dismantled . | . . . . Machines Sabotaged . | . . . . Overloaded Fab Kills . | . . . . Hacking | -11 -10 -10 -9 --------- Run | Yrd Mat Min Mat Machines Accessed 9 | . 9 . . Terminals 6 | . 6 . . Fabricators . | . . . . Repair Stations 1 | . 1 . . Recycling Units 2 | . 2 . . Scanalyzers . | . . . . Garrison Access . | . . . . Total Hacks 25 | . 25 . . Successful 19 | . 19 . . Failed 6 | . 6 . . Catastrophic . | . . . . Database Lockouts . | . . . . Manual . | . . . . Terminals 13 | . 13 . . Fabricators . | . . . . Repair Stations 6 | . 6 . . Recycling Units 6 | . 6 . . Scanalyzers . | . . . . Garrison Access . | . . . . Terminal Hacks 9 | . 9 . . Record 3 | . 3 . . Alert Level 2 | . 2 . . Maintenance Status 1 | . 1 . . Transport Status 1 | . 1 . . Hauler Manifests 1 | . 1 . . Zone Layout 1 | . 1 . . Fabricator Hacks . | . . . . Repair Station Hacks 4 | . 4 . . Scan Component 2 | . 2 . . Repair 1 | . 1 . . Refit 1 | . 1 . . Recycling Unit Hacks 6 | . 6 . . Recycle Component 1 | . 1 . . Process 1 | . 1 . . Report Inventory 3 | . 3 . . Retrieve Matter 1 | . 1 . . Scanalyzer . | . . . . Garrison Access Hacks . | . . . . Unauthorized Hacks . | . . . . Terminals . | . . . . Fabricators . | . . . . Repair Stations . | . . . . Recycling Units . | . . . . Scanalyzers . | . . . . Garrison Access . | . . . . Data Cores Recovered . | . . . . Used . | . . . . Hacking Detections 5 | . 5 . . Full Trace Events 2 | . 2 . . Feedback Events . | . . . . Feedback Blocked . | . . . . Robot Schematics Acquired . | . . . . Robots Built . | . . . . Authchips . | . . . . Time . | . . . . Total Robot Build Rating . | . . . . Part Schematics Acquired . | . . . . Parts Built . | . . . . Authchips . | . . . . Time . | . . . . Total Part Build Rating . | . . . . Parts Repaired 1 | . 1 . . Time 26 | . 26 . . Parts Recycled 1 | . 1 . . Recycled Matter 165 | . 165 . . Retrieved Matter 216 | . 216 . . Retrieved Components . | . . . . Parts Scanalyzed . | . . . . Part Schematics Acquired . | . . . . Parts Damaged . | . . . . Bothacking | -11 -10 -10 -9 ------------ Run | Yrd Mat Min Mat Used RIF Installer . | . . . . Robots Hacked . | . . . . Non-combat . | . . . . Combat . | . . . . Robot Hacks Applied . | . . . . Relay Couplers Released . | . . . . Fabnet Peak Effective % . | . . . . Robots Rewired . | . . . . Allies Hacked . | . . . . Hacks Repelled . | . . . . Allies | -11 -10 -10 -9 -------- Run | Yrd Mat Min Mat Total Allies . | . . . . Largest Group . | . . . . Highest-Rated Group . | . . . . Highest-Rated Ally . | . . . . Total Orders . | . . . . Ally Attacks . | . . . . Total Damage . | . . . . Kills . | . . . . Allies Corrupted . | . . . . Allies Melted . | . . . . Intel | -11 -10 -10 -9 ------- Run | Yrd Mat Min Mat Robot Analysis Total . | . . . . Derelict Logs Recovered 2 | . . 2 . Drone Launches . | . . . . Drone Recoveries . | . . . . Exploration | -11 -10 -10 -9 ------------- Run | Yrd Mat Min Mat Turns Passed 1736 | 138 1201 288 109 Spaces Moved 1181 | 116 845 165 55 Core 22 | 22 . . . Treads 645 | . 425 165 55 Legs . | . . . . Wheels 514 | 94 420 . . Hover . | . . . . Flight . | . . . . Fastest Speed 50 | 50 80 160 160 Average Speed 124 | 74 121 160 160 Slowest Speed 160 | 80 160 160 160 Overloaded Moves . | . . . . Propulsion Burnouts . | . . . . Robots Hopped . | . . . . Cave-ins Triggered . | . . . . Exploration Rate (%) 37 | 5 91 45 9 Regions Visited 3 Branch Regions 1 Pre-discovered Areas 1 | . . 1 . Known Exits Taken . | . . . . Unknown Exits Taken 3 | 1 1 1 . Scrap Searched 1 | . . 1 . Spaces Dug . | . . . . Terrain Destroyed 79 | . 26 49 4 Melee . | . . . . Projectile . | . . . . AOE 79 | . 26 49 4 Terrain Rammed . | . . . . Walls Destroyed . | . . . . Machines Disabled . | . . . . Actions | -11 -10 -10 -9 --------- Run | Yrd Mat Min Mat Total 1350 | 156 952 175 67 Wait 32 | . 27 . 5 Move 1178 | 115 844 164 55 Hop . | . . . . Pick Up 34 | 16 17 1 . Fast Attach . | . . . . Attach 12 | 9 3 . . Detach 2 | 2 . . . Swap 19 | 4 13 2 . Drop 19 | 4 14 1 . Fire 54 | 6 34 7 7 Melee . | . . . . Ram . | . . . . Kick . | . . . . Crush . | . . . . Escape Stasis . | . . . . Rewire . | . . . . Trap . | . . . . Miscellaneous . | . . . . Route ------- -11/Scrapyard -10/Materials (discovered 5 exits: [*Mat x3] / [*Min x2]) -10/Mines (discovered 2 exits: [*Mat] / [Sub]) -9/Materials History --------- Turn | Location | Event 2 | -11/Scrapyard | Met Revision 17 61 | -11/Scrapyard | Discovered new exit (range 8) 139 | -11/Scrapyard | Entered Materials 289 | -10/Materials | Discovered new exit (range 16) 303 | -10/Materials | Build established: Scavenger-Mutant 563 | -10/Materials | Discovered new exit (range 7) 679 | -10/Materials | Discovered new exit (range 3) 814 | -10/Materials | Discovered new exit (range 11) 1286 | -10/Materials | Discovered new exit (range 11) 1335 | -10/Materials | Repaired Assault Rifle? 1340 | -10/Materials | Entered Mines 1415 | -10/Mines | Learned Materials security intel 1448 | -10/Mines | Discovered new exit (range 9) 1537 | -10/Mines | Learned Materials garrison access intel 1548 | -10/Mines | Discovered new exit (range 11) 1585 | -10/Mines | Learned location of Storage (-7) 1628 | -10/Mines | Entered Materials 1628 | -9/Materials | Evolved 2 slots: Utility x2 1636 | -9/Materials | Build established: Mutant 1737 | -9/Materials | Self-destructed Last Messages --------------- GH-Z8Y(g) slips back into the shadows. PARAMETERS=UTILITY+2 Evolving occurs each time the central map of a new depth is reached, but not in branch areas. Your world map route is accessible via Backspace, or the MAP button in the bottom-right corner. LOCATION=UNKNOWN GOAL=ESCAPE Loading Materials security intel (x10)... G-34 Mercenary destroyed. K-01 Serf collects debris. Grenade Launcher destroyed. Destroyed Grenade Launcher. G-47 Trooper destroyed. G-34 Mercenary destroyed. Acquired 40 matter. Acquired 26 matter. Acquired 23 matter. K-01 Serf collects debris. Map ----- +----------------------------------------------------+ | ????????????????????????????????????????????? | | ????????????????????????????????????????????? | | ????????????????????????????????????????????? | | ????????????????????????????????????????????? | | ###########?????????????????????????????????? | | ###########?????????????????????????????????? | | ## ##???##### ??????????????????????? | | ## ##???########??????????????????????? | | ## ##???## ??????????????????????? | | ## ##???## ????????????????????????? | | ## ##???## ???????????????????????? | | ## ####### ##???????????????????????? | | ## ####### ##???????????????????????? | | ## # # ##???????????????????????? | | ## # # # ???????????????????????? | | ## # #= # ??? ??????????????????? | | ## # # ?"" "??????????????????? | | ######+### [= # """ ""?????????????????? | | ??## # = + """ ""? # ?????????????? | | ??## # # # ?????????????? | | ??## + # ? + ?????????????? | | ??## # # # ##?????????????? | | ??## # # ############?????????????? | | ??### ## # # ##?????????????? | | ??### ## # g# ##?????????????? | | ???## ######## g@ ##?????????????? | | ???## ######## # ##?????????????? | | ???## ##????## ############?????????????? | | ???## ######## ############?????????????? | | ???## ####### ##??????????????????????? | | ???## ??????????????????????? | | ???## ??????????????????????? | | ???## ??????????????????????? | | ???## ####### ##??????????????????????? | | ???## #########+####??????????????????????? | | ???## ##??? ??????????????????????? | | ???## ##??????????????????????????????????? | | ???#######??????????????????????????????????? | | ???#######??????????????????????????????????? | | ????????????????????????????????????????????? | | ????????????????????????????????????????????? | | ????????????????????????????????????????????? | | ????????????????????????????????????????????? | | ????????????????????????????????????????????? | | ????????????????????????????????????????????? | | ????????????????????????????????????????????? | | ????????????????????????????????????????????? | | ????????????????????????????????????????????? | | ????????????????????????????????????????????? | | ????????????????????????????????????????????? | +----------------------------------------------------+ Best States ------------- Heat Dissipation 28 Energy Generation 10 Energy Capacity 250 Matter Stores 300 Matter Capacity 300 Sight Range 16 Terrain Scan Range 16 Terrain Scan Density 10 Evasion (%) 50 Recoil Reduction 2 Item Schematics ----------------- None Robot Schematics ------------------ None Fabricated ------------ Nothing Alien Tech Used ----------------- None Achievements -------------- Part-time Mechanic Shopping List Challenges ------------ None Game ------ Seed SegregatorAlertExoskeleton Manual? 0 Play Time 00:46:23 Cumulative 0.7 hours Start 2024.04.02 @ 21:38:17 End 2024.04.02 @ 22:34:30 Sessions 1 Manual Loads 0 Difficulty Rogue Special Mode None Game No. 1 Rogue 1 Adventurer 0 Explorer 0 Win Type - Total 0 Types 0/0/0/0/0/0/0/0/0 Lore% 0 Gallery% 1 Achievement% 5 Wizard Run 0 Options --------- Layout 1 ASCII 0 Keyboard 1 Movement Arrows Keybinds 0 Fullscreen 1 Font 24/Smallcaps Map View 50x35 Zoom Use 0% Tactical HUD 0 Map Filters NONE Filters NONE Steam 1 RUN: e2e49a45-4431-495e-b5e1-1fb8695c8429